bitfinex/quotes_ETHUSD_20251011
["timestamp","ask_amount","ask_price","bid_price","bid_amount"]
[1760215972135,2.70325115,3699.3,3698.8,0.002]
[1760215972340,0.03379108,3699.2,3698.8,0.002]
[1760215972636,2.70321412,3699.3,3698.8,0.002]
[1760215972840,2.73708595,3699.2,3698.8,0.002]
[1760215973141,3.33710644,3698.9,3698.8,0.002]
[1760215973344,3.37090027,3698.9,3698.8,0.002]
[1760215973503,3.83490027,3698.9,3698.8,0.002]
[1760215973709,5.75490027,3698.9,3698.8,0.002]
[1760215973906,0.464,3699.5,3698.8,0.002]
[1760215974110,0.464,3698.9,3698.8,0.002]
[1760215974340,3.80110644,3698.9,3698.8,0.002]
[1760215974643,2.73730027,3698.9,3698.8,0.002]
[1760215974804,0.03379291,3699.0,3698.8,0.002]
[1760215975011,2.70307645,3699.5,3698.8,0.002]
[1760215975337,2.70321412,3699.3,3698.8,0.002]
[1760215975577,0.03379108,3699.2,3698.8,0.002]
[1760215975728,2.70337991,3699.1,3698.8,0.002]
[1760215976042,2.70350644,3698.9,3698.8,0.002]
[1760215976202,0.03379291,3699.0,3698.8,0.002]
[1760215976405,0.03379108,3699.2,3698.8,0.002]
[1760215976637,2.70343165,3699.1,3698.8,0.002]
[1760215976841,0.03379291,3699.0,3698.8,0.002]
[1760215977015,2.73670202,3699.8,3698.8,2.70555674]
[1760215977220,0.03378561,3699.8,3699.0,2.70340931]
[1760215977527,2.73664512,3699.8,3698.8,0.002]
[1760215977707,2.7029915,3699.7,3699.6,0.1344]
[1760215978139,0.03378561,3699.8,3699.6,0.1344]
[1760215978519,0.947,3699.9,3699.6,0.1344]
[1760215978722,0.947,3699.9,3699.8,4.7572488]
[1760215979117,0.947,3699.9,3699.8,2.0544]
[1760215979665,0.947,3699.9,3699.8,0.1344]
[1760215980684,3.64977575,3699.9,3699.8,0.1344]
[1760215980831,0.6336,3699.8,3698.8,0.002]
[1760215981033,2.70336027,3699.1,3699.0,0.1344]
[1760215981232,3.33710644,3698.9,3698.8,0.002]
[1760215981431,5.29090027,3698.9,3698.8,0.002]
[1760215981630,2.70379883,3698.5,3698.2,0.1344]
[1760215981843,2.70379883,3698.5,3697.8,0.1352]
[1760215981844,5.29119631,3698.5,3697.8,0.1352]
[1760215982078,3.80139883,3698.5,3697.8,0.1352]
[1760215982245,3.83519631,3698.5,3697.0,0.01351219]
[1760215982448,3.33599631,3698.5,3697.7,0.1352]
[1760215982640,0.03379748,3698.5,3698.1,0.1352]
[1760215982965,0.03379748,3698.5,3698.4,0.1364]
[1760215983273,0.03379474,3698.8,3698.4,0.1364]
[1760215983635,18.67945328,3699.9,3698.4,0.002]
[1760215983636,0.03378926,3699.4,3698.4,0.002]
[1760215983841,2.73694864,3699.4,3698.4,0.002]
[1760215984043,0.03378926,3699.4,3698.4,0.002]
[1760215984384,0.03378652,3699.7,3699.0,2.70340163]
[1760215984737,0.947,3699.9,3699.1,2.70336027]
[1760215984932,0.947,3699.9,3699.2,0.01351219]
[1760215985250,0.947,3699.9,3699.1,0.01351219]
[1760215985431,0.947,3699.9,3698.5,0.1607]
[1760215985432,0.947,3699.9,3698.5,2.70379883]
[1760215985635,2.70300169,3699.6,3698.6,1.92]
[1760215985851,0.03378834,3699.5,3698.7,2.70362418]
[1760215986070,0.03378834,3699.5,3698.4,1.922]
[1760215986368,2.73671747,3699.7,3698.6,1.92]
[1760215986538,0.03378652,3699.7,3698.6,1.92]
[1760215986738,2.73671938,3699.7,3698.5,1.92]
[1760215986950,2.73671938,3699.7,3698.7,2.70363363]
[1760215987176,2.70338792,3699.1,3698.4,0.002]
[1760215987382,0.03379291,3699.0,3698.4,0.002]
[1760215987577,2.70339596,3699.1,3698.4,0.002]
[1760215987783,0.03378834,3699.5,3698.6,2.70372573]
[1760215988089,3.64982038,3699.9,3698.7,0.1607]
[1760215988267,0.03378561,3699.8,3699.1,2.7032961]
[1760215988455,0.03378561,3699.8,3698.9,1.92]
[1760215988659,2.7029673,3699.7,3698.6,1.92]
[1760215988989,0.03378561,3699.8,3698.9,1.92]
[1760215989186,0.03378561,3699.8,3698.7,1.92]
[1760215989389,0.6336,3699.7,3698.0,0.002]
[1760215989576,2.70350367,3699.0,3698.0,0.002]
[1760215989780,0.03379383,3698.9,3698.0,0.01551219]
[1760215989957,2.70358416,3698.8,3698.0,2.71966308]
[1760215990291,0.03379565,3698.7,3698.0,0.01551219]
[1760215990487,0.464,3699.5,3698.0,1.93551219]
[1760215990488,2.70353317,3698.9,3698.0,1.93551219]
[1760215990703,0.03379474,3698.8,3698.0,0.01551219]
[1760215990857,0.03379474,3698.8,3698.0,0.002]
[1760215991067,2.70379883,3698.5,3698.0,0.002]
[1760215991260,2.73759631,3698.5,3698.0,0.002]
[1760215991460,5.12159631,3698.5,3698.0,0.002]
[1760215991666,5.08779883,3698.5,3698.0,0.002]
[1760215992599,2.70372556,3698.7,3698.0,0.002]
[1760215992799,2.70321412,3699.3,3698.0,0.002]
[1760215992800,0.03379657,3698.6,3698.0,0.002]
[1760215992988,0.033792,3699.1,3698.0,0.002]
[1760215993189,2.73669675,3699.8,3698.9,2.70350181]
[1760215993395,2.70302797,3699.6,3698.7,2.70362838]
[1760215993569,0.001,3700.2,3699.1,2.810512]
[1760215993874,0.001,3700.2,3698.7,0.55701116]
[1760215993875,0.001,3700.2,3700.1,1.92]
[1760215994076,0.001,3700.2,3698.7,0.1607]
[1760215994263,0.001,3700.2,3698.1,1.92]
[1760215994264,0.001,3700.2,3698.2,0.1607]
[1760215994471,2.70280865,3699.9,3698.8,1.92]
[1760215994773,0.02019946,3699.8,3699.1,2.70330667]
[1760215994997,0.02019946,3700.1,3699.1,2.70330667]
[1760215995207,0.001,3700.2,3699.2,0.02703287]
[1760215995424,0.001,3700.2,3699.4,2.70311293]
[1760215995710,0.001,3700.2,3699.2,0.18773287]
[1760215995711,0.001,3700.2,3699.8,2.70282419]
[1760215995870,0.001,3700.2,3699.5,2.70299869]
[1760215996075,0.001,3700.2,3699.2,1.92]
[1760215996304,2.7026476,3700.1,3699.0,1.92]
[1760215996477,0.02019946,3700.0,3698.7,1.92]
[1760215996677,0.02019946,3700.0,3698.7,0.47865609]
[1760215996898,0.02019946,3700.0,3698.4,0.002]
[1760215997103,0.02019946,3700.0,3698.9,2.70348077]
[1760215997301,2.70277575,3699.9,3699.0,2.70343324]
[1760215997603,0.02019946,3699.8,3699.1,2.70334859]
[1760215997904,0.02119946,3700.2,3698.4,2.0827]
[1760215998144,0.02119946,3700.2,3698.6,1.92]
[1760215998295,0.02119946,3700.2,3699.6,2.70298649]
[1760215998482,0.02119946,3700.2,3699.5,2.70305562]
[1760215998810,2.70276645,3700.0,3699.1,1.92]
[1760215998997,2.72298648,3699.9,3698.7,2.7035809]
[1760215999378,0.02019946,3699.9,3699.1,2.70336001]
[1760215999574,0.02019946,3699.9,3699.2,2.70327015]
[1760216000116,0.02019946,3700.0,3698.5,0.63936435]
[1760216000410,0.001,3700.2,3698.8,2.70357953]
[1760216000716,0.001,3700.2,3699.9,2.70272075]
[1760216000921,0.001,3700.2,3700.1,2.70262965]
[1760216001120,0.001,3700.2,3699.9,2.70271525]
[1760216001430,0.001,3700.2,3699.3,0.1607]
[1760216001718,0.001,3700.2,3699.5,2.70300496]
[1760216002251,0.001,3700.2,3698.8,2.86427023]
[1760216002252,2.70275889,3700.0,3698.8,2.86427023]
[1760216002405,2.72298234,3699.9,3699.0,2.70338687]
[1760216002922,2.72298234,3699.9,3698.4,2.70586587]
[1760216002923,2.7028488,3699.8,3698.4,2.70586587]
[1760216003131,2.70304811,3699.6,3698.7,2.7035921]
[1760216003300,0.02019946,3699.5,3698.6,1.92]
[1760216003503,0.02019946,3699.5,3698.6,4.62372125]
[1760216003725,0.02019946,3699.5,3699.4,0.1344]
[1760216003932,2.7029961,3699.6,3699.4,0.1344]
[1760216004135,0.02019946,3699.5,3699.4,0.1344]
[1760216004342,2.72313479,3699.7,3699.4,0.1344]
[1760216004706,2.72313479,3699.7,3699.6,0.1344]
[1760216005132,0.02019946,3699.8,3699.6,0.1344]
[1760216005303,2.70269211,3700.1,3699.6,0.1344]
[1760216005524,0.02019946,3700.0,3699.6,0.1344]
[1760216005709,0.02019946,3700.0,3699.2,2.70328346]
[1760216005906,2.72292349,3700.0,3699.9,0.1344]
[1760216006111,3.15512349,3700.0,3699.9,0.1344]
[1760216007047,2.72292349,3700.0,3699.9,0.1344]
[1760216008315,3.15512349,3700.0,3699.9,0.1344]
[1760216008840,0.02019946,3700.0,3699.9,0.1344]
[1760216009044,0.001,3700.2,3699.9,0.1344]
[1760216009346,0.001,3700.2,3700.0,2.86334126]
[1760216009550,0.001,3700.2,3700.1,2.83702965]
[1760216010045,0.001,3700.2,3700.1,0.1344]
[1760216011224,0.02119946,3700.2,3700.1,0.1344]
[1760216012143,0.001,3700.6,3700.2,1.92]
[1760216012343,0.001,3700.6,3700.5,2.70233752]
[1760216013217,0.001,3700.6,3700.2,4.62255661]
[1760216013331,0.001,3700.6,3698.7,2.70359704]
[1760216013332,0.001,3700.6,3699.0,2.5536]
[1760216013528,0.001,3700.6,3699.3,0.1597]
[1760216014059,2.70327807,3700.6,3699.7,2.70285893]
[1760216014247,0.02019946,3700.5,3699.7,2.70285893]
[1760216014448,0.02019946,3700.5,3699.3,0.1597]
[1760216014637,0.001,3700.6,3699.9,2.70271047]
[1760216014832,0.02119946,3700.6,3699.9,2.70271047]
[1760216015064,0.02119946,3700.6,3699.7,2.70287674]
[1760216015369,0.02119946,3700.6,3699.3,0.1597]
[1760216015370,2.70243785,3700.4,3699.3,0.1597]
[1760216015526,0.02019946,3700.3,3699.4,2.70314104]
[1760216015861,0.001,3700.6,3699.5,0.18673067]
[1760216016164,0.001,3700.6,3700.0,2.70269032]
[1760216016347,0.001,3700.6,3700.1,2.7026165]
[1760216016858,0.001,3700.6,3699.5,0.1597]
[1760216017060,0.001,3700.6,3700.0,2.70269899]
[1760216017428,0.001,3700.6,3700.1,2.70262823]
[1760216017631,0.001,3700.6,3699.5,0.1597]
[1760216017831,0.001,3700.6,3699.4,0.2862841]
[1760216017832,0.001,3700.6,3700.5,2.70233752]
[1760216018430,0.001,3700.6,3700.5,2.86203752]
[1760216018963,0.001,3700.6,3700.5,4.80906089]
[1760216019127,0.001,3700.6,3700.5,4.78203752]
[1760216020463,0.001,3700.6,3700.5,5.41563752]
[1760216020654,0.001,3700.6,3700.5,6.2274446]
[1760216022165,0.001,3700.6,3700.5,6.3618446]
[1760216023864,0.001,3700.6,3700.5,3.6738446]
[1760216024069,0.001,3700.6,3700.5,2.86203752]
[1760216024747,0.001,3700.6,3700.5,2.88906089]
[1760216024952,0.001,3700.6,3700.5,3.52266089]
[1760216025245,0.001,3700.6,3700.5,3.49563752]
[1760216027851,0.001,3700.6,3700.5,3.33593752]
[1760216028168,0.001,3700.6,3700.5,3.49563752]
[1760216029571,0.001,3700.6,3700.5,5.41563752]
[1760216030349,0.001,3700.6,3700.5,4.78203752]
[1760216031375,0.001,3700.6,3700.5,5.41563752]
[1760216032475,2.70081258,3702.6,3701.6,2.70148749]
[1760216032476,0.9,3702.2,3701.6,2.70148749]
[1760216032840,0.02019946,3702.1,3701.6,2.70148749]
[1760216033065,0.02019946,3702.1,3701.1,0.1597]
[1760216033253,0.02019946,3702.1,3701.2,0.1597]
[1760216033562,0.9,3702.2,3702.1,2.7011696]
[1760216033854,0.9,3702.2,3702.1,2.9952696]
[1760216034776,0.9,3702.2,3701.2,2.98797766]
[1760216034777,20.19279165,3702.9,3701.4,0.1597]
[1760216034984,2.7014642,3701.7,3700.8,0.1597]
[1760216035179,2.70165566,3701.5,3699.5,2.70506678]
[1760216035340,0.02019946,3701.4,3699.6,0.27050668]
[1760216035540,2.70196428,3701.1,3699.6,0.1597]
[1760216035773,2.72222753,3701.0,3700.1,2.70260924]
[1760216035978,2.72222753,3701.0,3699.9,2.70276008]
[1760216035979,2.72219159,3701.0,3699.9,2.70277575]
[1760216036281,2.7221719,3701.0,3699.6,2.0797]
[1760216036580,2.7221719,3701.0,3700.1,2.7026161]
[1760216036581,2.72223012,3701.0,3700.1,2.7026161]
[1760216036757,2.70206913,3700.9,3700.0,2.70269382]
[1760216036958,0.02019946,3700.8,3700.0,2.70269382]
[1760216037185,0.02019946,3700.8,3700.2,2.70255578]
[1760216037344,2.70196646,3701.1,3700.2,2.70255578]
[1760216037546,2.72218206,3701.0,3700.2,2.70255578]
[1760216037855,2.7020748,3700.9,3700.1,2.70262144]
[1760216038066,0.02019946,3700.8,3700.1,2.70262144]
[1760216038243,0.6336,3701.9,3700.2,0.02702556]
[1760216038439,2.70175515,3701.3,3700.5,2.70233723]
[1760216038644,0.02019946,3701.2,3700.1,0.1597]
[1760216038852,0.4606,3701.5,3699.5,1.922]
[1760216039058,2.70204507,3701.0,3700.0,2.70268266]
[1760216039254,0.02019946,3700.9,3700.5,2.70227303]
[1760216039482,0.48079946,3701.4,3699.5,2.70505834]
[1760216039680,2.70201295,3701.0,3700.2,2.70253528]
[1760216039881,0.02019946,3700.9,3700.3,2.70246226]
[1760216040243,0.02019946,3700.9,3700.2,2.70254137]
[1760216040447,0.02019946,3700.9,3700.1,0.002]
[1760216040643,2.70204855,3700.9,3700.1,0.002]
[1760216040850,0.02019946,3700.8,3700.1,0.002]
[1760216041079,2.70255661,3700.2,3700.1,0.002]
[1760216041379,3.16315661,3700.2,3700.1,0.002]
[1760216041555,3.18335607,3700.2,3700.1,0.002]
[1760216041763,3.81695607,3700.2,3700.1,0.002]
[1760216043985,2.70314104,3699.4,3699.3,0.002]
[1760216044184,2.70357953,3698.8,3698.7,0.002]
[1760216044348,2.72377899,3698.8,3698.7,0.002]
[1760216044545,3.18437899,3698.8,3698.7,0.002]
[1760216045459,2.72377899,3698.8,3698.7,0.002]
[1760216045662,0.02019946,3698.8,3698.7,0.002]
[1760216045865,2.866,3699.4,3698.7,0.1364]
[1760216045866,0.02019946,3698.9,3698.7,0.1364]
[1760216046064,0.02019946,3699.3,3698.7,0.1364]
[1760216046286,2.70329143,3699.2,3699.1,0.1344]
[1760216046586,2.70328719,3699.2,3699.1,0.1344]
[1760216046784,2.70357953,3698.8,3698.7,0.002]
[1760216047017,2.72377899,3698.8,3698.7,0.1364]
[1760216047200,3.18437899,3698.8,3698.7,0.002]
[1760216048690,0.48079946,3698.8,3698.7,0.002]
[1760216048852,0.02019946,3698.8,3698.7,0.002]
[1760216049053,0.02019946,3698.9,3698.7,0.002]
[1760216049294,2.70357953,3698.8,3698.7,0.002]
[1760216049503,3.16417953,3698.8,3698.7,0.002]
[1760216050056,0.02019946,3698.9,3698.7,0.002]
[1760216050261,0.02019946,3699.2,3698.7,0.1364]
[1760216050462,2.70344751,3699.0,3698.7,0.002]
[1760216050661,2.70357953,3698.8,3698.7,0.002]
[1760216050853,2.70357953,3698.8,3698.7,0.1364]
[1760216051053,3.16417953,3698.8,3698.7,0.1364]
[1760216052255,2.72357496,3699.1,3698.7,0.1364]
[1760216052462,0.02019946,3699.1,3698.7,0.1364]
[1760216052801,1.0804,3699.4,3699.0,0.1344]
[1760216052802,2.7234633,3699.3,3699.0,0.1344]
[1760216053093,2.7234633,3699.3,3698.7,0.002]
[1760216053094,2.70337207,3699.1,3698.7,0.002]
[1760216053304,2.70337207,3699.1,3699.0,0.1344]
[1760216054369,2.70409129,3698.1,3697.9,0.002]
[1760216054602,25.77903166,3698.1,3697.9,0.002]
[1760216054798,26.23963166,3698.1,3697.9,0.002]
[1760216055485,3.3379838,3697.7,3697.6,0.002]
[1760216055681,3.35818326,3697.7,3697.6,0.002]
[1760216055885,5.73878326,3697.7,3697.6,0.002]
[1760216056115,5.7185838,3697.7,3697.6,0.002]
[1760216056286,2.70540811,3696.3,3696.2,0.1352]
[1760216056483,0.02019946,3696.3,3696.2,0.1352]
[1760216056683,0.02019946,3696.7,3696.2,0.1352]
[1760216056890,0.48079946,3696.7,3696.2,0.1352]
[1760216057224,0.02019946,3696.7,3695.8,0.2981]
[1760216057523,0.4606,3697.3,3695.4,0.18776067]
[1760216057524,2.70539514,3696.4,3695.4,0.1607]
[1760216057819,0.02019946,3696.3,3695.5,1.92]
[1760216058021,0.02019946,3696.3,3695.7,2.70578225]
[1760216058221,0.02019946,3696.5,3695.7,2.70578225]
[1760216058525,0.02019946,3696.5,3695.4,0.47738942]
[1760216058698,0.02019946,3696.5,3695.5,0.2981]
[1760216058899,2.70512459,3696.7,3695.8,2.70571334]
[1760216059095,2.70512459,3696.7,3695.5,0.2981]
[1760216059096,0.02019946,3696.6,3695.5,2.2181]
[1760216059408,0.02019946,3696.6,3695.1,1.922]
[1760216059409,20.54153983,3696.6,3695.1,0.002]
[1760216059611,0.6336,3696.4,3695.1,0.002]
[1760216059794,2.72560757,3696.3,3695.1,0.002]
[1760216060122,0.48079946,3696.3,3695.1,0.002]
[1760216060288,2.70608568,3695.4,3695.1,0.002]
[1760216060495,0.02019946,3696.0,3695.7,2.70577832]
[1760216060803,0.96719946,3696.6,3695.2,0.2981]
[1760216061128,0.96719946,3696.6,3695.3,0.30063931]
[1760216061340,0.96719946,3696.6,3695.1,0.002]
[1760216061536,23.22755383,3695.2,3695.1,0.002]
[1760216061688,25.78115383,3695.2,3695.1,0.002]
[1760216061892,26.24175383,3695.2,3695.1,0.002]
[1760216062099,2.70643319,3694.9,3692.8,0.2981]
[1760216062444,20.52134037,3693.0,3691.5,0.1374]
[1760216062600,1.94019946,3692.9,3691.5,0.1374]
[1760216062804,2.70805396,3692.7,3691.5,0.1374]
[1760216063146,2.70805396,3692.7,3691.0,0.00319139]
[1760216063147,2.70819228,3692.5,3691.0,0.00319139]
[1760216063355,0.02019946,3692.4,3691.0,2.71247526]
[1760216063503,1.92,3692.6,3691.1,0.58308753]
[1760216063709,0.02019946,3692.5,3691.1,2.50308753]
[1760216064024,0.6336,3693.2,3691.8,2.70867357]
[1760216064025,1.92,3693.0,3691.8,2.70867357]
[1760216064233,0.02019946,3692.9,3691.1,0.58308753]
[1760216064401,2.70840425,3692.3,3691.1,0.58308753]
[1760216064607,1.92,3693.3,3691.0,0.00319139]
[1760216064608,2.70849543,3692.1,3691.0,0.00319139]
[1760216064802,0.02019946,3692.0,3691.0,0.00319139]
[1760216065000,2.7287656,3692.0,3691.0,0.00319139]
[1760216065200,0.02019946,3692.0,3691.1,0.2981]
[1760216065436,0.4306,3693.2,3691.1,0.2981]
[1760216065437,0.02019946,3693.1,3691.2,2.70914607]
[1760216065645,2.72795909,3693.1,3691.5,1.92]
[1760216065808,0.02019946,3693.1,3692.1,2.70846981]
[1760216066003,0.02019946,3693.1,3692.3,2.70832605]
[1760216066501,0.02019946,3693.2,3692.1,0.2981]
[1760216067050,0.02019946,3693.2,3692.3,2.70826728]
[1760216067230,0.02019946,3693.2,3693.1,0.1352]
[1760216067610,0.4306,3693.2,3691.4,0.2981]
[1760216067935,2.70795468,3692.9,3691.4,2.54893586]
[1760216068135,0.02019946,3692.8,3691.7,1.92]
[1760216068322,2.70812845,3692.6,3691.8,1.92]
[1760216068640,0.947,3693.4,3692.6,2.70808304]
[1760216068845,0.02019946,3693.3,3691.9,0.2981]
[1760216069002,0.947,3693.4,3692.0,0.24889559]
[1760216069204,0.947,3693.4,3692.0,0.66068559]
[1760216069507,3.13744689,3694.4,3692.3,0.6336]
[1760216069508,0.02019946,3694.0,3692.3,0.6336]
[1760216069746,0.02019946,3694.0,3692.4,0.2981]
[1760216069944,0.02019946,3694.0,3693.3,2.70758825]
[1760216070270,0.02019946,3694.0,3692.5,1.92]
[1760216070571,0.02019946,3694.1,3693.5,2.70744216]
[1760216070791,0.02019946,3694.6,3693.6,0.02707385]
[1760216071078,0.02019946,3694.6,3693.1,0.2981]
[1760216071281,2.70694385,3694.3,3692.7,2.2181]
[1760216071451,0.02019946,3694.2,3693.0,1.92]
[1760216071652,2.70708243,3694.1,3693.0,2.70781823]
[1760216071851,0.02019946,3694.0,3693.4,2.70747963]
[1760216072063,0.02019946,3694.0,3692.7,0.2981]
[1760216072264,0.02019946,3694.0,3693.2,2.70767859]
[1760216072463,2.70752228,3693.5,3692.7,2.70804539]
[1760216072663,2.70780757,3693.1,3692.0,0.2981]
[1760216072835,0.02019946,3693.4,3690.6,2.70955913]
[1760216072836,2.7080509,3692.7,3691.9,2.70863241]
[1760216073039,0.02019946,3692.6,3691.5,2.70887356]
[1760216073266,0.45079946,3692.6,3690.7,3.02080513]
[1760216073546,0.45079946,3692.6,3690.7,0.31132]
[1760216073780,3.34193897,3692.3,3690.7,0.01322]
[1760216073943,2.70902644,3691.4,3690.7,0.01322]
[1760216074141,0.02019946,3691.3,3690.8,2.70943302]
[1760216074342,0.02019946,3691.6,3690.8,2.70939169]
[1760216074544,0.02019946,3691.9,3691.3,2.70904311]
[1760216074748,2.70858872,3692.0,3691.2,2.70914367]
[1760216075077,2.72854809,3692.3,3690.7,2.23132]
[1760216075078,0.02019946,3691.9,3690.7,2.23132]
[1760216075375,0.02019946,3692.2,3690.9,2.70930103]
[1760216075541,0.02019946,3692.2,3690.7,0.31132]
[1760216075741,2.70849579,3692.1,3691.3,2.70904797]
[1760216075942,0.02019946,3692.0,3691.1,2.70919801]
[1760216076188,0.02019946,3692.0,3691.0,0.00319139]
[1760216076383,0.02019946,3692.0,3691.0,0.30129139]
[1760216076583,0.02019946,3692.5,3691.5,2.70886321]
[1760216076754,0.02019946,3692.5,3691.9,2.70861474]
[1760216076949,0.02019946,3692.5,3691.6,2.70878046]
[1760216077166,0.02019946,3692.5,3691.0,0.30329139]
[1760216077367,2.70842388,3692.2,3691.1,2.70921947]
[1760216077567,0.02019946,3692.1,3691.1,2.70921947]
[1760216077878,0.02019946,3692.1,3691.0,0.00519139]
[1760216078092,2.70862553,3692.0,3691.1,2.70921503]
[1760216078267,0.02019946,3691.9,3691.0,1.92519139]
[1760216078470,0.02019946,3691.9,3691.0,4.63447682]
[1760216078800,0.02019946,3691.9,3691.0,0.00519139]
[1760216078976,0.02019946,3691.9,3691.0,1.92519139]
[1760216079177,2.70870578,3691.8,3691.0,2.71444685]
[1760216079378,0.02019946,3691.7,3691.0,2.71444685]
[1760216079607,0.02019946,3691.7,3690.7,0.01322]
[1760216079608,0.4306,3691.6,3690.7,0.01322]
[1760216079814,0.02019946,3691.5,3690.7,0.01322]
[1760216080117,0.65379946,3691.5,3690.7,0.01322]
[1760216080322,2.70943968,3690.8,3690.7,0.01322]
[1760216080529,0.02019946,3690.8,3690.2,0.002]
[1760216080688,0.02019946,3691.3,3690.8,2.70943249]
[1760216081016,0.02019946,3691.3,3690.6,2.70956489]
[1760216081175,0.02019946,3691.3,3690.2,0.002]
[1760216081380,0.02019946,3691.3,3690.4,2.70967174]
[1760216081576,0.4645,3691.5,3690.5,2.70963932]
[1760216081823,0.4645,3691.5,3690.2,0.002]
[1760216081824,0.02019946,3691.4,3690.2,0.002]
[1760216082027,0.4645,3691.3,3690.2,0.002]
[1760216082206,0.65379946,3691.2,3690.2,0.002]
[1760216082408,2.70980679,3690.3,3690.2,0.002]
[1760216082718,2.73000625,3690.3,3690.2,0.002]
[1760216083022,3.19450625,3690.3,3690.2,0.002]
[1760216083178,3.19450625,3690.3,3688.0,0.1637]
[1760216083179,21.00603983,3690.3,3688.0,0.003]
[1760216083379,2.5536,3690.2,3688.0,0.003]
[1760216083610,2.71070554,3689.1,3688.0,0.003]
[1760216083819,0.65379946,3689.0,3688.0,0.003]
[1760216084024,3.8290698,3689.0,3688.0,0.003]
[1760216084323,2.71102268,3688.7,3688.0,0.003]
[1760216084628,0.02019946,3688.6,3688.0,0.003]
[1760216084848,0.4645,3688.6,3688.0,0.003]
[1760216085147,0.02019946,3688.5,3688.0,0.003]
[1760216085348,0.6336,3688.3,3687.5,0.1768321]
[1760216085647,0.2225,3687.6,3687.5,0.1768321]
[1760216085966,0.4645,3687.6,3687.5,0.1768321]
[1760216086257,0.02019946,3688.0,3687.5,0.1768321]
[1760216086709,2.73133726,3688.5,3687.5,0.1768321]
[1760216086910,0.02019946,3688.5,3687.8,2.71158031]
[1760216087113,0.02019946,3688.5,3687.5,0.1768321]
[1760216087347,0.4645,3688.4,3687.5,0.1768321]
[1760216087543,2.71156452,3688.0,3687.5,0.1768321]
[1760216087711,0.48469946,3687.9,3687.5,0.1768321]
[1760216087914,0.02019946,3687.9,3687.5,0.1768321]
[1760216088113,2.71119416,3688.5,3687.5,0.1768321]
[1760216088114,2.71136169,3688.2,3687.5,0.1768321]
[1760216088315,0.02019946,3688.1,3687.5,0.1768321]
[1760216088560,2.71179086,3687.6,3687.5,0.1768321]
[1760216088959,3.19649032,3687.6,3687.5,0.1768321]
[1760216089161,0.4645,3688.3,3687.5,0.1768321]
[1760216089360,1.92,3689.6,3687.5,0.1768321]
[1760216089542,2.71179086,3687.6,3687.5,0.1768321]
[1760216089743,0.4645,3688.0,3687.5,0.1768321]
[1760216089962,20.52134037,3688.9,3687.5,0.1768321]
[1760216090270,0.2225,3690.0,3687.5,0.1768321]
[1760216090271,0.4645,3688.8,3687.5,0.1768321]
[1760216091336,0.4645,3688.8,3687.6,0.0271179]
[1760216091538,0.4645,3688.8,3687.5,0.46571502]
[1760216091740,0.4645,3689.4,3687.6,2.73890876]
[1760216091940,0.4645,3689.4,3688.1,2.71141923]
[1760216092126,24.18051707,3689.8,3687.5,0.46571502]
[1760216092127,0.949,3689.8,3687.5,0.46571502]
[1760216092354,0.6336,3688.9,3687.5,0.1768321]
[1760216092557,0.6336,3688.7,3687.5,0.1768321]
[1760216092792,2.3572,3689.2,3687.5,0.1768321]
[1760216092957,0.4372,3689.6,3687.6,0.3184]
[1760216093285,2.71047337,3689.4,3687.6,0.3184]
[1760216093493,0.4372,3689.6,3687.6,0.3184]
[1760216093687,0.4372,3689.6,3688.8,2.71083785]
[1760216093890,0.4372,3689.6,3688.6,2.71103811]
[1760216093891,0.4372,3689.7,3688.6,2.71098657]
[1760216094061,0.4372,3689.7,3688.0,2.71143665]
[1760216094262,3.14745678,3689.7,3688.6,2.71099494]
[1760216094570,2.71048154,3689.4,3688.6,2.71099494]
[1760216094769,0.4372,3689.7,3688.1,0.1627]
[1760216094987,0.4372,3691.3,3688.7,0.6336]
[1760216095188,0.4372,3691.7,3689.8,2.71012332]
[1760216095494,2.70870744,3691.8,3688.8,0.3184]
[1760216095495,0.4372,3691.6,3688.8,0.3184]
[1760216095666,2.70963913,3690.6,3688.8,0.3184]
[1760216095871,0.4372,3690.7,3688.8,0.3184]
[1760216096192,2.70850189,3692.1,3688.9,0.22384]
[1760216096391,2.70807891,3692.7,3690.2,2.70981761]
[1760216096392,0.4372,3691.3,3690.2,2.70981761]
[1760216096599,0.6597,3692.0,3690.1,0.02709953]
[1760216096800,0.6597,3692.0,3689.9,2.71010054]
[1760216096801,2.70869265,3691.9,3689.9,2.71010054]
[1760216097000,0.6597,3692.0,3689.2,2.71060414]
[1760216097001,0.6597,3692.0,3690.2,0.3184]
[1760216097160,3.36826052,3692.0,3691.0,2.70929187]
[1760216097357,0.6597,3692.0,3691.2,2.70907702]
[1760216097562,0.4372,3692.5,3691.1,2.70915353]
[1760216097903,0.4372,3692.5,3691.2,2.70914462]
[1760216098059,2.70832765,3692.4,3691.9,0.1352]
[1760216098414,0.4372,3692.3,3691.9,0.1352]
[1760216098689,0.5724,3692.2,3691.6,0.1352]
[1760216098870,2.70864537,3691.9,3691.6,0.1352]
[1760216099199,0.4372,3691.8,3691.6,0.1352]
[1760216099410,1.36145048,3695.4,3690.3,1.92]
[1760216099411,0.4372,3693.3,3691.3,2.70907268]
[1760216099557,0.4372,3693.2,3691.4,2.70892841]
[1760216099777,0.4372,3693.2,3690.7,0.3184]
[1760216099778,2.70827311,3692.4,3692.0,0.1352]
[1760216099981,0.1352,3692.6,3692.0,0.1352]
[1760216100212,0.1352,3692.8,3692.2,0.1352]
[1760216100426,2.70871768,3691.8,3690.8,2.70937459]
[1760216100709,2.70871768,3691.8,3690.0,3.02837212]
[1760216100710,1.92,3692.3,3690.0,0.3184]
[1760216100913,0.4372,3692.4,3690.3,3.02817125]
[1760216101211,0.4372,3692.4,3690.4,0.02709733]
[1760216101510,0.4372,3692.4,3690.5,0.3184]
[1760216101710,2.70879275,3691.7,3690.9,2.70931279]
[1760216101917,2.70848436,3692.2,3691.2,2.70913077]
[1760216102212,0.4372,3692.4,3690.4,0.3184]
[1760216102411,2.7081424,3692.6,3691.7,2.70871858]
[1760216102611,2.70813369,3692.6,3691.8,2.70870467]
[1760216102811,2.70845822,3692.2,3691.0,2.70929287]